[Event "Chhattisgarh Masters GM 2022"]
[Site "Chhattisgarh"]
[Date "2022.09.21"]
[Round "3.9"]
[White "Tiwari, Arjun"]
[Black "Harshavardhan G B"]
[Result "1/2-1/2"]
[ECO "C56"]
[WhiteElo "2034"]
[BlackElo "2429"]
[Annotator "TA"]
[PlyCount "136"]
[EventDate "2022.09.19"]
[EventCountry "IND"]
[SourceTitle "playchess.com"]
[Source "ChessBase"]
[SourceQuality "1"]
[TimeControl "5400+30"]

{[%evp 21,136,0,0,0,0,-3,0,0,0,-36,-20,-22,-11,-24,0,-11,-10,-10,-11,-8,-5,-20,-4,-17,-5,-5,0,0,0,-22,-24,-23,-27,-50,-46,-41,-25,-35,-24,-60,-58,-64,-8,-34,-39,-34,-32,-32,-32,-41,-37,-304,-19,-149,-190,-203,-204,-212,-212,-177,-8,-8,-8,-8,-8,-8,-8,-56,-56,-56,-56,-56,-56,-56,-56,-56,-56,-56,-8,-8,-8,-8,-8,-8,-8,-8,-8,-8,-8,-8,-8,-8,-8,-8,-8,-8,-8,-8,-8,-8,-8,-29970,-8,-8,-8,-8,-8,-8,-8,-8,0,0,0,0,0,0,0]} 1. e4 {[%emt 0:00:04]} e5 {[%emt 0:00:37]} 2. Nf3 {[%emt 0:00:08]} Nc6 {[%emt 0:00:12]} 3. d4 {[%emt 0:00:19]} exd4 {[%emt 0:00:11]} 4. Bc4 {[%emt 0:00:06]} Nf6 {[%emt 0:00:46]} 5. O-O {[%emt 0:00:16]} Nxe4 {[%emt 0:00:43]} 6. Re1 {[%emt 0:00:11]} d5 {[%emt 0:00:11]} 7. Bxd5 {[%emt 0:00:04]} Qxd5 {[%emt 0:00:11]} 8. Nc3 {[%emt 0:00:04][%cal Bb1c3,Bc3e4,Be4c5][%mdl 32]} Qd7 {[%emt 0:05:56]} 9. Nxe4 {[%emt 0:05:52]} Be7 {[%emt 0:00:54]} 10. Bg5 {[%emt 0:00:06]} O-O {[%emt 0:01:26]} 11. Bxe7 {[%emt 0:00:10]} Qxe7 {[%emt 0:05:09]} 12. Nxd4 {[%emt 0:00:14] C56: Two Knights: 4 d4 exd4 5 0-0 Nxe4.} Bd7 {[%emt 0:01:05]} 13. Nb3 {[%emt 0:14:36]} Rad8 {[%emt 0:13:20]} 14. Nec5 {[%emt 0:01:05] Pair of Knights!} Bc8 {[%emt 0:00:44] [#]} 15. Qf3 $146 {[%emt 0:08:51]} ({Predecessor:} 15. Rxe7 Rxd1+ 16. Rxd1 Nxe7 17. f3 b6 18. Ne4 f6 19. Kf2 Kf7 20. Nc3 a6 21. a3 {0-1 (62) Alexakis,D (2450)-Schitco,I (2467) Chess.com INT 2020}) 15... Qg5 {[%emt 0:02:58]} 16. Qc3 {[%emt 0:19:01]} Qd5 {[%emt 0:05:40]} 17. Re3 {[%emt 0:07:55]} Nd4 {[%emt 0:04:33]} 18. Rae1 {[%emt 0:05:19]} b6 {[%emt 0:02:15]} 19. Qxd4 {[%emt 0:05:15]} (19. Re5 {is more complex.} Qd6 20. Nxd4 Qxd4 21. Ne4) 19... Qxd4 {[%emt 0:00:38]} 20. Nxd4 {[%emt 0:00:03]} Rxd4 {[%emt 0:00:15]} 21. Nb3 {[%emt 0:00:33]} Rd7 {[%emt 0:01:49]} 22. Re7 {[%emt 0:00:17]} c5 {[%emt 0:01:08]} 23. f3 {[%emt 0:01:50]} g6 {[%emt 0:00:25]} 24. Kf2 {[%emt 0:01:08]} Kg7 {[%emt 0:00:20]} 25. g4 {[%emt 0:01:39]} Rfd8 {[%emt 0:01:11]} 26. Rxd7 {[%emt 0:03:12]} Rxd7 $11 {[%emt 0:00:12][%mdl 4096] Endgame KRB-KRN} 27. Re2 {[%emt 0:01:27]} Rd1 {[%emt 0:02:02]} 28. Re1 {[%emt 0:02:12]} Rd6 {[%emt 0:00:25]} 29. Re2 {[%emt 0:02:06]} Be6 {[%emt 0:02:27]} 30. Rd2 {[%emt 0:01:16]} Rxd2+ {[%emt 0:04:44]} 31. Nxd2 $15 {[%emt 0:00:02] KB-KN} g5 {[%emt 0:00:17]} (31... Bxa2 $15 32. c4 Kf6) 32. b3 {[%emt 0:03:17]} f5 {[%emt 0:00:35]} 33. gxf5 {[%emt 0:06:20]} Bxf5 {[%emt 0:01:11]} 34. c3 {[%emt 0:00:01]} Kf6 {[%emt 0:00:19]} 35. Kg3 {[%emt 0:01:29]} h5 {[%emt 0:03:43]} 36. h4 $2 {[%emt 0:02:40][%mdl 8192]} ({Better is} 36. Nc4 $15) 36... Bc2 $2 {[%emt 0:01:21]} (36... gxh4+ $1 $19 37. Kf4 (37. Kxh4 $2 Bd3 $19) 37... h3) 37. Nf1 {[%emt 0:08:21]} (37. b4 $11) 37... Bb1 $17 {[%emt 0:01:58]} 38. a3 {[%emt 0:00:21] [#]} gxh4+ $1 {[%emt 0:00:42]} 39. Kxh4 {[%emt 0:00:12] [#]} Kf5 $1 {[%emt 0:00:20]} 40. b4 {[%emt 0:01:32]} cxb4 $2 {[%emt 0:02:34]} (40... Bd3 $19 41. Nh2 Kf4 42. bxc5 bxc5 43. Kxh5 Be2) 41. cxb4 $11 {[%emt 0:00:00]} Kf4 {[%emt 0:00:00] Threatens to win with ...Bg6.} 42. Kxh5 {[%emt 0:00:00]} Bd3 {[%emt 0:00:00]} 43. Nh2 {[%emt 0:00:00]} Be2 {[%emt 0:00:00] aiming for ...Kg3.} 44. Kh4 {[%emt 0:00:00]} (44. Kg6 $11) 44... Bxf3 $15 {[%emt 0:00:00]} 45. Nf1 {[%emt 0:00:00]} (45. Nxf3 Kxf3 46. Kg5 Ke4 47. Kf6 Kd5 48. Kf7 Kc4 49. Kg6 b5 50. Kh6 Kb3 51. Kh5 Kxa3 52. Kg6 Kxb4 53. Kg5 a5 54. Kh5 a4 55. Kh4 Kc4 56. Kh5 a3 57. Kh4 b4 58. Kh3 b3 59. Kg4 a2 60. Kh5 a1=Q 61. Kg6 b2 62. Kg7 b1=Q+ 63. Kf7 Qf1+ 64. Ke8 Qg7 65. Kd8 Qff8#) 45... Be2 {[%emt 0:00:00]} 46. Ng3 {[%emt 0:00:00]} Bd1 {[%emt 0:00:00]} 47. Kh3 {[%emt 0:00:00]} Bf3 {[%emt 0:00:00]} 48. Kh4 {[%emt 0:00:00]} Bg4 {[%emt 0:00:00]} 49. Nf1 {[%emt 0:00:00]} b5 {[%emt 0:00:00]} (49... Bf5 $15 {is superior.}) 50. Ng3 $11 {[%emt 0:00:00]} Bd1 {[%emt 0:00:00]} 51. Kh3 {[%emt 0:00:22]} Bf3 {[%emt 0:00:00]} 52. Kh2 {[%emt 0:00:18]} Bc6 {[%emt 0:02:30]} 53. Nh5+ {[%emt 0:00:59]} Kg4 {[%emt 0:05:23]} 54. Ng3 {[%emt 0:00:16]} Kf3 {[%emt 0:03:21]} (54... Bf3 $5 {[%cal Rg4f4]}) 55. Nf5 {[%emt 0:02:33] White threatens Nd4+ and mate.} Ke4 {[%emt 0:00:26] Inhibits Nd4.} 56. Ne7 {[%emt 0:00:56]} Bb7 {[%emt 0:01:27]} 57. Kg3 {[%emt 0:00:11]} Kd3 {[%emt 0:00:14]} 58. Kf4 {[%emt 0:00:24]} Kc3 {[%emt 0:00:13]} 59. Ke5 {[%emt 0:00:35]} Kb3 {[%emt 0:00:15]} 60. Kd6 {[%emt 0:02:18]} Kxa3 {[%emt 0:00:08]} 61. Kc7 $2 {[%emt 0:00:01][%mdl 8192]} (61. Kc5 $11) 61... Be4 $2 {[%emt 0:05:21]} (61... Bf3 {mates} 62. Nc8 a6 63. Kb6 Kxb4 64. Kxa6 Kc5 65. Na7 b4 66. Ka5 b3 67. Nb5 b2 68. Na3 Bc6 69. Nb1 Kc4 70. Nd2+ Kc3 71. Nb1+ Kc2 72. Na3+ Kb3 73. Nb1 Be4 74. Nd2+ Kc3 75. Nxe4+ Kd3 76. Nc5+ Kd4 77. Nb3+ Kc3 78. Nc5 b1=Q 79. Ka6 Kc4 80. Nb7 Qb5+ 81. Ka7 Kd5 82. Nd8 Kd6 83. Ne6 Kxe6 84. Ka8 Kd6 85. Ka7 Kc6 86. Ka8 Qb7#) 62. Nc8 {[%emt 0:00:24] The position is equal.} a6 {[%emt 0:00:10]} 63. Kb6 $1 {[%emt 0:01:42]} Kxb4 {[%emt 0:00:05]} 64. Kxa6 {[%emt 0:00:21]} Kc5 {[%emt 0:00:03] ( -> ...b4)} 65. Nd6 $1 {[%emt 0:00:09]} b4 {[%emt 0:00:14]} 66. Nxe4+ {[%emt 0:00:07]} Kd4 {[%emt 0:00:04]} 67. Nd2 {[%emt 0:00:18]} Kc3 {[%emt 0:00:04]} 68. Kb5 {[%emt 0:00:03]} Kxd2 {[%emt 0:00:06] Weighted Error Value: White=0.20 (precise) /Black=0.23 (precise)} 1/2-1/2

[Event "Chhattisgarh Masters GM 2022"]
[Site "Chhattisgarh"]
[Date "2022.09.21"]
[Round "3.10"]
[White "Ajay Karthikeyan"]
[Black "Divya Deshmukh"]
[Result "1-0"]
[ECO "C42"]
[WhiteElo "2422"]
[BlackElo "2330"]
[Annotator "TA"]
[PlyCount "79"]
[EventDate "2022.09.19"]
[EventCountry "IND"]
[SourceTitle "playchess.com"]
[Source "ChessBase"]
[SourceQuality "1"]
[TimeControl "5400+30"]

{[%evp 17,79,7,0,0,35,33,58,39,41,41,34,29,59,44,49,52,46,34,52,-2,33,18,54,51,115,67,190,187,231,223,209,112,111,91,93,97,91,87,87,88,97,89,118,95,92,92,80,88,95,100,175,166,588,612,609,592,500,191,12841,12842,12841,12839,12840,12837]} 1. e4 {[%emt 0:00:21]} e5 {[%emt 0:00:17]} 2. Nf3 {[%emt 0:00:04]} Nf6 {[%emt 0:00:02]} 3. Nxe5 {[%emt 0:00:05]} d6 {[%emt 0:00:03]} 4. Nf3 {[%emt 0:00:05]} Nxe4 {[%emt 0:00:03]} 5. Nc3 {[%emt 0:00:06]} Nxc3 {[%emt 0:00:10]} 6. dxc3 {[%emt 0:00:06]} Be7 {[%emt 0:00:04]} 7. Bf4 {[%emt 0:00:04]} Nd7 {[%emt 0:00:20]} 8. Qd2 {[%emt 0:00:09]} Nc5 {[%emt 0:00:35]} 9. O-O-O {[%emt 0:00:12]} O-O {[%emt 0:00:17]} 10. h4 {[%emt 0:00:27] 10.Be3 is vanishing. C42: Petroff Defence: 3 Nxe5 and unusual White 3rd moves.} Be6 {[%emt 0:04:52] Inhibits Bc4.} 11. Kb1 {[%emt 0:00:30]} c6 {[%emt 0:01:50]} 12. Nd4 {[%emt 0:16:44] White is slightly better.} (12. Bxd6 $2 Ne4 13. Qe3 Nxd6 $19) 12... Qa5 {[%emt 0:17:14] [#]} 13. Nb3 $146 {[%emt 0:17:28]} ({Predecessor:} 13. Nxe6 Nxe6 14. c4 Qf5 15. Be3 Nc5 16. Bd3 Nxd3 {½-½ (16) Vandenbussche,T (2263)-Skatchkov,P (2491) Ghent 2008}) 13... Nxb3 {[%emt 0:05:52]} 14. axb3 {[%emt 0:00:08]} b5 {[%emt 0:03:31]} 15. Bg5 {[%emt 0:05:59]} (15. Bxd6 $2 Bxd6 16. Bxb5 (16. Qxd6 $2 Rfd8 $19) 16... Qxb5 $19) 15... Rfe8 {[%emt 0:05:47]} 16. Bxe7 {[%emt 0:07:59]} Rxe7 {[%emt 0:00:06]} 17. h5 {[%emt 0:00:41]} (17. Qxd6 Rd7 18. Qxd7 Bxd7 19. Rxd7 Rd8 $15) 17... h6 {[%emt 0:02:03]} 18. Be2 {[%emt 0:16:00]} (18. Qxd6 Rd7 19. Qxd7 Bxd7 20. Rxd7 Rd8 $15) (18. Bd3 $1 $14) 18... Bd5 {[%emt 0:08:13]} (18... Rae8 $5 {[%cal Re6b3]}) 19. Rhg1 {[%emt 0:01:52]} Rae8 {[%emt 0:25:29]} 20. Bd3 {[%emt 0:01:50]} c5 {[%emt 0:15:18] [#]} (20... Re5 $14) 21. Bf5 {[%emt 0:11:43]} (21. Bh7+ $1 $16 {[%mdl 512]} Kxh7 22. Qxd5) 21... Re5 {[%emt 0:02:06]} (21... Be6 $14 22. g4 d5) 22. Bd7 $18 {[%emt 0:13:35]} Rb8 {[%emt 0:07:18] [#]} 23. f4 $1 {[%emt 0:01:01]} Rb6 {[%emt 0:00:00][%cal Ob6a6] ( -> ...Ra6!)} (23... Rxh5 $2 24. g4 Rh1 25. Qxd5 $18) 24. c4 {[%emt 0:00:07]} (24. fxe5 $2 {[#]} Ra6 $1 25. Qxd5 Qa1#) ({White has to play} 24. Bxb5 $1 $18 Re6 25. Qxd5 Qxb5 26. Rge1) 24... Qxd2 $16 {[%emt 0:00:23]} 25. Rxd2 {[%emt 0:00:01]} Re7 {[%emt 0:00:03]} 26. Bxb5 {[%emt 0:00:07]} (26. cxd5 Rxd7 27. Re2 Kf8 $11) 26... Bb7 {[%emt 0:00:38]} 27. Ba4 {[%emt 0:01:33]} Bc8 {[%emt 0:00:00]} 28. g4 {[%emt 0:00:56]} Re4 {[%emt 0:00:02]} 29. Rf2 {[%emt 0:02:28]} Be6 {[%emt 0:01:11]} 30. Kc1 {[%emt 0:00:41]} Ra6 {[%emt 0:00:12]} 31. g5 {[%emt 0:02:16] Hoping for gxh6.} hxg5 {[%emt 0:01:27]} 32. Rxg5 {[%emt 0:00:04] And now h6 would win.} f6 {[%emt 0:00:23]} (32... Bxc4 33. h6 $16) 33. Rg3 {[%emt 0:00:15] aiming for Rfg2.} Bxc4 {[%emt 0:00:35]} 34. h6 $18 {[%emt 0:00:08]} (34. bxc4 $6 Rxa4 35. Rfg2 Re7 $16) 34... g5 $2 {[%emt 0:00:34]} (34... Re7 35. Rfg2 (35. bxc4 Rxa4 36. b3 Ra1+ 37. Kb2 Rh1 $16) 35... Kh7) 35. fxg5 {[%emt 0:00:30]} ({Not} 35. bxc4 Rxa4 36. fxg5 fxg5 37. Rxg5+ Kh7 $18) 35... fxg5 {[%emt 0:00:01]} 36. Rxg5+ {[%emt 0:00:31]} (36. bxc4 Rxa4 37. Rxg5+ Kh7 $18) 36... Kh7 {[%emt 0:00:01]} 37. Bd7 $2 {[%emt 0:01:36]} ({Less strong is} 37. bxc4 Rxa4 38. Rf6 Re7 $18) (37. Kd2) 37... Be6 $2 {[%emt 0:01:28] [#]} (37... Re2 38. Rxe2 Bxe2) 38. Rf6 $1 {[%emt 0:00:33] Threatening mate with Rg7+. White is clearly winning.} Ra1+ {[%emt 0:00:29]} (38... Rg4 39. Rxg4) 39. Kd2 {[%emt 0:00:02] White wants to mate with Rg7+.} Rd4+ {[%emt 0:00:27]} 40. Kc3 {[%emt 0:00:43] Weighted Error Value: White=0.25 (precise) /Black=0.39} 1-0

[Event "Chhattisgarh Masters GM 2022"]
[Site "Chhattisgarh"]
[Date "2022.09.21"]
[Round "3.10"]
[White "Laddha, Shubh Jayesh"]
[Black "Bharadia Yash"]
[Result "0-1"]
[ECO "B90"]
[WhiteElo "2248"]
[BlackElo "2085"]
[Annotator "TA"]
[PlyCount "80"]
[EventDate "2022.09.19"]
[EventCountry "IND"]
[SourceTitle "playchess.com"]
[Source "ChessBase"]
[SourceQuality "1"]
[TimeControl "5400+30"]

{[%evp 12,80,25,25,31,18,17,0,0,0,0,0,6,0,0,0,8,0,0,0,-2,-4,4,0,29,27,84,0,0,0,0,0,0,-27,39,0,0,0,0,-530,-481,-624,-597,-818,-937,-944,-879,-908,-914,-772,-508,-612,-582,-627,-628,-627,-620,-611,-610,-532,-557,-562,-550,-1122,-1108,-1341,-1353,-1288,-661,-1268,-1277]} 1. e4 {[%emt 0:00:04]} c5 {[%emt 0:00:10]} 2. Nf3 {[%emt 0:00:02]} d6 {[%emt 0:00:08]} 3. d4 {[%emt 0:00:03]} cxd4 {[%emt 0:00:06]} 4. Nxd4 {[%emt 0:00:04]} Nf6 {[%emt 0:00:11]} 5. Nc3 {[%emt 0:00:03]} a6 {[%emt 0:00:07]} 6. h3 {[%emt 0:00:03]} e5 {[%emt 0:00:23]} 7. Nde2 {[%emt 0:00:04]} h5 {[%emt 0:00:08] B90: Sicilian Najdorf: Unusual White 6th moves, 6 Be3 Ng4 and 6 Be3 e5.} 8. Bg5 {[%emt 0:00:04]} Be6 {[%emt 0:00:30]} 9. Bxf6 {[%emt 0:00:09]} Qxf6 {[%emt 0:00:06] The position is equal.} 10. Nd5 {[%emt 0:00:04]} Qd8 {[%emt 0:00:08]} 11. Qd3 {[%emt 0:00:05]} Nd7 {[%emt 0:00:30]} 12. O-O-O {[%emt 0:00:40]} g6 {[%emt 0:00:06]} 13. Kb1 {[%emt 0:00:09]} Nc5 {[%emt 0:00:10]} 14. Qf3 {[%emt 0:01:30] 14.Qa3 injects fresh life into this line.} Bg7 {[%emt 0:00:09] Inhibits Nf6+.} 15. Nec3 {[%emt 0:00:23]} b5 {[%emt 0:00:13]} 16. Ne3 {[%emt 0:01:38]} O-O {[%emt 0:01:08]} 17. Ncd5 {[%emt 0:19:02] [#]} f5 $146 {[%emt 0:00:44]} ({Predecessor:} 17... h4 18. g3 Ra7 19. Qg2 Qg5 20. Rg1 f5 21. exf5 gxf5 22. f4 Qh6 23. g4 fxg4 {½-½ (51) Miedema,D (2381)-Womacka,M (2449) Germany 2019}) 18. exf5 {[%emt 0:09:31]} e4 {[%emt 0:00:34]} 19. Qe2 {[%emt 0:14:00]} (19. Qg3 $16 Bxf5 20. Nxf5 Rxf5 21. f4 (21. Qxg6 $2 Rg5 $19)) 19... gxf5 $11 {[%emt 0:02:49] aiming for ...f4.} 20. g3 {[%emt 0:12:31]} Na4 $36 {[%emt 0:01:40][%mdl 2048] Black is more active.} 21. c3 {[%emt 0:06:45]} b4 {[%emt 0:17:08][%cal Ra4c3] Strongly threatening ...Nxc3+!} 22. Qc2 {[%emt 0:11:33]} (22. Nxb4 Rb8 23. Qxa6 {[#]} Nxc3+ $1 24. bxc3 Bxc3 25. Qxd6 (25. a3 $2 Bxb4 26. Bc4 Bxa3+ 27. Ka2 Bxc4+ 28. Qxc4+ Kh8 $19) 25... Bxa2+ 26. Kc2 (26. Kxa2 Qa5+ 27. Kb3 Rxb4+ 28. Kxc3 Rc8+) 26... Qxd6 27. Rxd6 Bxb4 $17) (22. Qxh5 bxc3 23. b3 (23. Qg6 $2 Bf7 $19) 23... Nb6 $17) 22... Nxb2 {[%emt 0:01:04]} 23. Kxb2 $14 {[%emt 0:04:35] And now Ka1 would win.} (23. Qxb2 Rb8 24. Kc1 (24. Bxa6 $2 bxc3 25. Bb5 cxb2 $19) (24. Nxb4 $2 a5 $19) 24... Qa5 25. Ne7+ (25. Nxb4 $2 Rfc8 $19) 25... Kh7 $17) 23... bxc3+ {[%emt 0:00:12]} (23... Qa5 24. Bc4 bxc3+ 25. Ka1 $18) 24. Ka1 {[%emt 0:02:51] Nf4 is the strong threat.} Rb8 $1 {[%emt 0:00:12]} 25. Nc4 {[%emt 0:02:08][%mdl 8192] Prevents Rb2. Black converts the advantage convincingly.} (25. Nxc3 {leads to mate.} Qa5) ({Don't blunder} 25. Bxa6 $2 Rb2 26. Qxb2 (26. Qa4 $2 c2 $19) 26... cxb2+ 27. Kb1 h4 $19) (25. Nf4 $2 Bf7 26. Bc4 Rb2 27. Qxb2 cxb2+ $19) (25. Rb1 $1 $11 Rxb1+ 26. Kxb1) 25... Rb5 $19 {[%emt 0:00:57] Black is clearly winning.} 26. Nf4 {[%emt 0:06:33] [#]} Rb2 $1 {[%emt 0:01:58][%mdl 576] Skewer} 27. Nxe6 {[%emt 0:03:21]} (27. Qxb2 cxb2+) 27... Rxc2 {[%emt 0:00:16]} 28. Nxd8 {[%emt 0:00:07]} Rxd8 {[%emt 0:01:05]} 29. a4 {[%emt 0:02:14]} Rxf2 {[%emt 0:00:52]} 30. Rc1 {[%emt 0:01:23]} Rb8 {[%emt 0:01:27] ( -> ...Rb4)} 31. Ne3 {[%emt 0:01:47]} c2+ {[%emt 0:00:33]} 32. Ka2 {[%emt 0:00:05]} Rb2+ {[%emt 0:00:08]} 33. Ka3 {[%emt 0:00:35]} Rf3 {[%emt 0:04:03][%csl LRe3,LRg3]} 34. Bc4+ {[%emt 0:00:05]} Kh8 {[%emt 0:00:12]} 35. Rhe1 {[%emt 0:01:06]} Rxg3 {[%emt 0:03:19]} 36. Bb3 {[%emt 0:01:56]} Rb1 {[%emt 0:00:17]} 37. Rxc2 {[%emt 0:01:02]} Rxe1 {[%emt 0:00:14]} 38. Rc8+ {[%emt 0:00:08]} Kh7 {[%emt 0:00:21]} 39. Nxf5 {[%emt 0:00:17]} Ra1+ {[%emt 0:00:43]} 40. Kb4 {[%emt 0:00:05]} a5+ {[%emt 0:00:04] Weighted Error Value: White=0.67/Black=0.13 (very precise)} 0-1

[Event "Chhattisgarh Masters GM 2022"]
[Site "Chhattisgarh"]
[Date "2022.09.21"]
[Round "3.11"]
[White "Hemanth Raam"]
[Black "Vaibhav Jayant Raut"]
[Result "1-0"]
[ECO "B42"]
[WhiteElo "1983"]
[BlackElo "2243"]
[Annotator "TA"]
[PlyCount "85"]
[EventDate "2022.09.19"]
[EventCountry "IND"]
[SourceTitle "playchess.com"]
[Source "ChessBase"]
[SourceQuality "1"]
[TimeControl "5400+30"]

{[%evp 10,85,39,49,37,16,29,22,26,-5,-1,-35,21,19,14,25,19,14,26,0,18,16,30,0,0,0,12,20,14,12,18,17,19,22,30,16,11,17,32,29,29,13,44,41,61,58,62,58,63,49,75,45,77,55,81,79,158,164,260,252,242,229,224,195,829,592,759,760,705,685,1468,1455,1416,1362,29977,29978,12837,6395]} 1. e4 {[%emt 0:00:04]} c5 {[%emt 0:00:14]} 2. Nf3 {[%emt 0:00:06]} e6 {[%emt 0:00:08]} 3. d4 {[%emt 0:00:35]} cxd4 {[%emt 0:00:27]} 4. Nxd4 {[%emt 0:00:05]} a6 {[%emt 0:00:47]} 5. Bd3 {[%emt 0:00:32]} Ne7 {[%emt 0:00:14]} 6. c4 {[%emt 0:05:28]} Nbc6 {[%emt 0:01:57] B42: Sicilian: Kan Variation: 5 Bd3.} 7. Nxc6 {[%emt 0:00:50]} Nxc6 {[%emt 0:00:23]} 8. O-O {[%emt 0:00:21]} Bc5 {[%emt 0:12:52] The position is equal.} 9. Nd2 {[%emt 0:06:07] [#]} O-O $146 {[%emt 0:01:30]} ({Predecessor:} 9... d6 10. Nf3 e5 11. h3 Qf6 12. Be3 g5 13. Nh2 h5 14. Qf3 Qxf3 15. Nxf3 g4 16. hxg4 hxg4 {½-½ (48) Velicka,P (2384)-Kratochvil,V (2237) Ceske Budejovice 2022}) 10. Qh5 {[%emt 0:04:44]} Bd4 {[%emt 0:07:55]} ({Black should try} 10... d6 $15) 11. Nf3 $11 {[%emt 0:03:41]} ({Much weaker is} 11. e5 g6 12. Qh3 Bxe5 $15) 11... g6 {[%emt 0:03:19]} 12. Qh3 {[%emt 0:03:45]} Bg7 {[%emt 0:00:26]} 13. Bh6 {[%emt 0:02:33]} Qf6 {[%emt 0:09:32]} 14. Rae1 {[%emt 0:12:14] Strongly threatening e5.} Bxh6 {[%emt 0:15:21]} 15. Qxh6 {[%emt 0:00:10]} d6 {[%emt 0:01:06] Against e5} 16. Qc1 {[%emt 0:35:15]} (16. Rd1 {is more complex.} e5 17. Be2 Rd8 18. h3) 16... Rd8 {[%emt 0:03:07]} 17. Re3 {[%emt 0:00:36]} Bd7 {[%emt 0:08:03]} 18. Rd1 {[%emt 0:04:10]} Rac8 {[%emt 0:02:36][%cal Od6d5]} 19. Be2 {[%emt 0:02:31]} e5 {[%emt 0:04:23]} 20. h3 {[%emt 0:00:05] Inhibits Bg4.} Be6 {[%emt 0:01:39]} 21. b3 {[%emt 0:00:34]} Qe7 {[%emt 0:08:12]} 22. Qa3 {[%emt 0:02:06]} a5 {[%emt 0:01:33]} 23. Red3 {[%emt 0:01:10][%cal Rd3d6]} Nb4 {[%emt 0:01:08]} 24. R3d2 {[%emt 0:00:02]} Qc7 {[%emt 0:03:34]} 25. Ne1 {[%emt 0:03:27]} Qc5 {[%emt 0:02:11]} 26. Qb2 {[%emt 0:00:14]} Qb6 {[%emt 0:02:08]} 27. Nc2 {[%emt 0:00:32]} Nxc2 {[%emt 0:02:55]} 28. Qxc2 {[%emt 0:00:32]} Qc5 {[%emt 0:02:34][%cal Ob7b5]} 29. Qd3 {[%emt 0:02:17]} Rc6 {[%emt 0:00:44]} 30. h4 {[%emt 0:00:13][%cal Bh3h4,Bh4h5][%mdl 32]} Rf8 {[%emt 0:01:30]} 31. h5 {[%emt 0:00:23]} Kg7 {[%emt 0:00:38]} 32. Qg3 {[%emt 0:00:30]} f6 {[%emt 0:02:00]} (32... h6 $142) 33. Bg4 $16 {[%emt 0:00:02]} Bf7 {[%emt 0:00:36]} (33... Bxg4 {was called for.} 34. Qxg4 f5) 34. Qh4 $18 {[%emt 0:03:30] [#] Intending h6+ and mate.} Bg8 {[%emt 0:00:46]} 35. hxg6 {[%emt 0:00:44]} hxg6 {[%emt 0:00:28]} 36. Rd3 $40 {[%emt 0:00:14][%mdl 128] Black must now prevent Rh3. White attacks with force.} Kf7 $2 {[%emt 0:00:53]} (36... g5 37. Qh3 Bf7) 37. Rf3 {[%emt 0:00:46]} Kg7 {[%emt 0:00:31]} 38. Rh3 {[%emt 0:03:53][%cal Og4e6] Be6! would kill now.} Kf7 {[%emt 0:00:23] Against Be6+} 39. Qh8 {[%emt 0:00:02]} Ke7 {[%emt 0:00:37]} 40. Qg7+ {[%emt 0:01:05]} Bf7 {[%emt 0:00:11]} 41. Rf3 {[%emt 0:00:02]} Qb6 {[%emt 0:00:00]} 42. Rxf6 {[%emt 0:00:00]} Ke8 {[%emt 0:00:00] [#]} 43. Bd7+ $1 {[%emt 0:00:00][%mdl 512] Weighted Error Value: White=0.17 (very precise) /Black=0.40} 1-0